bitfinex/quotes_BTCUSD_20250523
["timestamp","ask_amount","ask_price","bid_price","bid_amount"]
[1747965099635,0.24926102,111290.0,111280.0,1.80735265]
[1747965099839,0.24926102,111290.0,111280.0,1.89689821]
[1747965100381,0.24926102,111290.0,111280.0,1.90588406]
[1747965100636,0.24027606,111290.0,111280.0,1.88791228]
[1747965100803,0.23927606,111290.0,111280.0,1.89689837]
[1747965101017,0.23927606,111290.0,111280.0,1.89889837]
[1747965101226,0.23029085,111290.0,111280.0,1.89889837]
[1747965101425,0.23029085,111290.0,111280.0,1.88991228]
[1747965101658,0.23029085,111290.0,111280.0,1.89889837]
[1747965101929,0.22130548,111290.0,111280.0,1.6832267]
[1747965102150,0.22130548,111290.0,111280.0,1.87193985]
[1747965104567,0.21231995,111290.0,111280.0,1.32440114]
[1747965104771,0.21231995,111290.0,111280.0,1.59368114]
[1747965104982,0.18000374,111290.0,111280.0,1.59368114]
[1747965107911,0.19690374,111290.0,111280.0,1.59368114]
[1747965116602,0.19690374,111290.0,111280.0,1.25368114]
[1747965117461,0.19661066,111290.0,111280.0,1.44239412]
[1747965117827,0.19768156,111290.0,111280.0,1.45936606]
[1747965118033,0.19768148,111290.0,111280.0,1.46735183]
[1747965118244,0.20666701,111290.0,111280.0,1.46735183]
[1747965118469,0.01897082,111290.0,111280.0,1.46735183]
[1747965118683,0.20766701,111290.0,111280.0,1.44938021]
[1747965118884,0.20666701,111290.0,111280.0,1.44938021]
[1747965119095,0.19768164,111290.0,111280.0,1.44938021]
[1747965119312,0.16536584,111290.0,111280.0,1.48903645]
[1747965119456,0.17435129,111290.0,111280.0,1.45138021]
[1747965121048,0.17435129,111290.0,111280.0,1.46036614]
[1747965121253,0.17435129,111290.0,111280.0,1.46935191]
[1747965121426,0.01797066,111290.0,111280.0,1.46935191]
[1747965121642,0.19768132,111290.0,111280.0,1.55889747]
[1747965121840,0.20666685,111290.0,111280.0,1.55889747]
[1747965122249,0.20666685,111290.0,111280.0,1.5499117]
[1747965123859,0.20666685,111290.0,111280.0,1.53193968]
[1747965124667,0.19768164,111290.0,111280.0,1.53193968]
[1747965125449,0.19768164,111290.0,111280.0,1.53193985]
[1747965125859,0.22139619,111290.0,111280.0,1.3432267]
[1747965126509,0.22139619,111290.0,111280.0,1.52295351]
[1747965126718,0.21241066,111290.0,111280.0,1.52295351]
[1747965127541,0.21241066,111290.0,111280.0,1.25188114]
[1747965129527,0.21241066,111290.0,111280.0,1.59188114]
[1747965131998,0.17971066,111290.0,111280.0,1.59188114]
[1747965132874,0.19491066,111290.0,111280.0,1.59188114]
[1747965133099,0.21121066,111290.0,111280.0,1.59188114]
[1747965133699,0.17889424,111290.0,111280.0,1.59188114]
[1747965134366,0.17889424,111290.0,111280.0,0.60024114]
[1747965134581,0.28298065,111290.0,111280.0,0.78068248]
[1747965134796,0.01797372,111270.0,111260.0,0.06441181]
[1747965135012,0.31806224,111270.0,111260.0,0.71605181]
[1747965135232,0.33260309,111270.0,111260.0,0.71605181]
[1747965135647,0.33260309,111270.0,111260.0,0.65164]
[1747965136563,0.33360309,111270.0,111260.0,0.65164]
[1747965138042,0.33260309,111270.0,111260.0,0.65164]
[1747965138223,0.33460309,111270.0,111260.0,0.65264]
[1747965138419,0.33760309,111270.0,111260.0,0.65364]
[1747965139446,0.33760309,111270.0,111260.0,0.6538]
[1747965148305,0.33760309,111270.0,111260.0,0.38448]
[1747965148511,0.33760309,111270.0,111260.0,0.65384]
[1747965153970,0.20271668,111270.0,111260.0,4.886329]
[1747965156041,0.20271668,111270.0,111260.0,4.918229]
[1747965156278,0.20271668,111270.0,111260.0,4.92897769]
[1747965157192,0.20271668,111270.0,111260.0,5.12671247]
[1747965157415,0.18474296,111270.0,111260.0,4.92897769]
[1747965157658,0.18474296,111270.0,111260.0,5.13205635]
[1747965157914,0.0139865,111270.0,111260.0,5.2485648]
[1747965158175,0.22967706,111270.0,111260.0,5.23957741]
[1747965158401,0.22069056,111270.0,111260.0,5.24856496]
[1747965158911,0.22069056,111270.0,111260.0,5.23781627]
[1747965159539,0.22069056,111270.0,111260.0,4.91656059]
[1747965159540,0.20271716,111270.0,111260.0,4.91656059]
[1747965159754,0.20271716,111270.0,111260.0,5.10530766]
[1747965160642,0.19815367,111310.0,111290.0,0.53768124]
[1747965160849,0.19815367,111310.0,111300.0,5.46217411]
[1747965160850,0.02001801,111310.0,111300.0,5.46217411]
[1747965161071,0.00205091,111310.0,111300.0,5.51878095]
[1747965161306,0.00205091,111310.0,111300.0,5.50979679]
[1747965161524,0.00205091,111310.0,111300.0,5.287349]
[1747965161751,0.02900112,111310.0,111300.0,5.271249]
[1747965161969,0.00405091,111310.0,111300.0,5.47789671]
[1747965162175,0.00405091,111310.0,111300.0,5.5232283]
[1747965162587,0.00305091,111310.0,111300.0,5.5232283]
[1747965162813,0.00505091,111310.0,111300.0,5.5232283]
[1747965163066,0.00505091,111310.0,111300.0,5.61277386]
[1747965163273,0.00405091,111310.0,111300.0,5.61277386]
[1747965163504,0.00605091,111310.0,111300.0,5.61277386]
[1747965165706,0.002,111330.0,111320.0,0.56191058]
[1747965165941,0.002,111330.0,111320.0,4.82896514]
[1747965165942,0.00205088,111330.0,111320.0,4.82896514]
[1747965167092,0.00205088,111330.0,111320.0,4.85094551]
[1747965168090,0.00205088,111330.0,111320.0,4.82896514]
[1747965168262,0.00405088,111330.0,111320.0,4.82896514]
[1747965168660,0.00405088,111330.0,111320.0,4.85094551]
[1747965171786,0.00405088,111330.0,111320.0,4.82896514]
[1747965172525,0.00405088,111330.0,111320.0,4.84329673]
[1747965174851,0.00305088,111330.0,111320.0,4.84329673]
[1747965175057,0.01103245,111330.0,111320.0,4.84329673]
[1747965175432,0.00205088,111330.0,111320.0,4.84329673]
[1747965175736,0.00205088,111330.0,111320.0,4.83958741]
[1747965175939,0.03585241,111340.0,111330.0,0.54659227]
[1747965176178,0.0448339,111340.0,111330.0,4.82040135]
[1747965176599,0.03585241,111340.0,111330.0,4.82938317]
[1747965176804,0.03585241,111340.0,111330.0,4.7627252]
[1747965176982,0.0448339,111340.0,111330.0,4.78068956]
[1747965177434,0.22446386,111340.0,111330.0,4.77170774]
[1747965177820,0.22546386,111340.0,111330.0,4.76272584]
[1747965178030,0.21648285,111340.0,111330.0,4.77170782]
[1747965178443,0.21748285,111340.0,111330.0,4.77170782]
[1747965179011,0.21748285,111340.0,111330.0,5.15930782]
[1747965179231,0.19959286,111340.0,111330.0,5.40152148]
[1747965179420,0.19959286,111340.0,111330.0,5.41948568]
[1747965179626,0.19959286,111340.0,111330.0,5.42846758]
[1747965180876,0.19959286,111340.0,111330.0,5.4374494]
[1747965181124,0.19959286,111340.0,111330.0,5.42846758]
[1747965182148,0.01098117,111340.0,111330.0,5.42740434]
[1747965182352,0.002,111340.0,111330.0,5.43638608]
[1747965182526,0.002,111340.0,111330.0,5.55843164]
[1747965182940,0.01098077,111340.0,111330.0,5.55843164]
[1747965183159,0.002,111340.0,111330.0,5.55843164]
[1747965183368,0.001,111340.0,111330.0,5.55843164]
[1747965183799,0.02894044,111350.0,111340.0,0.20657347]
[1747965183994,0.02894044,111350.0,111340.0,4.18860803]
[1747965184208,0.01996008,111350.0,111340.0,4.54390803]
[1747965184421,0.02894044,111350.0,111340.0,4.54390803]
[1747965185031,0.02894044,111350.0,111340.0,4.51144634]
[1747965185232,0.03792097,111350.0,111340.0,4.53838985]
[1747965185852,0.03792097,111350.0,111340.0,4.52308985]
[1747965186608,0.03792097,111350.0,111340.0,4.53371212]
[1747965187074,0.04690158,111350.0,111340.0,4.53371212]
[1747965187839,0.03792097,111350.0,111340.0,4.53371212]
[1747965188243,0.01996008,111350.0,111340.0,4.53371212]
[1747965188459,0.02894044,111350.0,111340.0,4.53371212]
[1747965188887,0.03792097,111350.0,111340.0,4.53371212]
[1747965189091,0.02894044,111350.0,111340.0,4.53371212]
[1747965189438,0.02894036,111350.0,111340.0,4.53371212]
[1747965189683,0.002,111350.0,111340.0,4.83794144]
[1747965191597,0.002,111350.0,111340.0,4.56882144]
[1747965191902,0.002,111350.0,111340.0,5.20392985]
[1747965193732,0.002,111350.0,111340.0,5.20432885]
[1747965199170,0.002,111350.0,111340.0,5.18912885]
[1747965201234,0.002,111350.0,111340.0,4.92000885]
[1747965201390,0.002,111350.0,111340.0,5.18908885]
[1747965202586,0.002,111350.0,111340.0,4.92000885]
[1747965202791,0.002,111350.0,111340.0,5.18908885]
[1747965203120,0.002,111350.0,111340.0,5.17288885]
[1747965203437,0.002,111350.0,111340.0,4.90380885]
[1747965203722,0.002,111350.0,111340.0,5.17288885]
[1747965205139,0.002,111350.0,111340.0,5.56036885]
[1747965206050,0.002,111350.0,111340.0,5.29128885]
[1747965206202,0.002,111350.0,111340.0,5.56036885]
[1747965208252,0.0184,111370.0,111360.0,0.54653638]
[1747965208436,0.01855268,111370.0,111360.0,4.79213294]
[1747965208672,0.00215268,111370.0,111360.0,4.79213294]
[1747965208902,0.01785268,111370.0,111360.0,4.79213294]
[1747965209127,0.03405268,111370.0,111360.0,4.79213294]
[1747965209550,0.03505268,111370.0,111360.0,4.79213294]
[1747965209940,0.03405268,111370.0,111360.0,4.79213294]
[1747965213577,0.04303103,111370.0,111360.0,4.79213294]
[1747965214475,0.05200962,111370.0,111360.0,4.79213294]
[1747965215419,0.05200954,111370.0,111360.0,4.76519426]
[1747965215593,0.06098821,111370.0,111360.0,4.79213294]
[1747965215807,0.05200954,111370.0,111360.0,4.79213294]
[1747965216225,0.06098821,111370.0,111360.0,4.79213294]
[1747965216832,0.05200954,111370.0,111360.0,4.79213294]
[1747965217299,0.06098821,111370.0,111360.0,4.79213294]
[1747965217499,0.05200954,111370.0,111360.0,4.79213294]
[1747965217742,0.06098821,111370.0,111360.0,4.79213294]
[1747965217947,0.06098821,111370.0,111360.0,5.17129294]
[1747965218904,0.05200954,111370.0,111360.0,5.17129294]
[1747965219330,0.24954869,111370.0,111360.0,5.15333406]
[1747965219539,0.24954869,111370.0,111360.0,5.16231362]
[1747965220065,0.24954869,111370.0,111360.0,5.27169406]
[1747965220275,0.24954869,111370.0,111360.0,5.55873326]
[1747965220867,0.24954869,111370.0,111360.0,5.5497537]
[1747965222516,0.24954869,111370.0,111360.0,5.55873326]
[1747965222729,0.24954933,111370.0,111360.0,5.5497537]
[1747965223460,0.24057082,111370.0,111360.0,5.54077406]
[1747965223879,0.24057082,111370.0,111360.0,5.5497537]
[1747965224295,0.24057082,111370.0,111360.0,5.5766787]
[1747965224496,0.24057082,111370.0,111360.0,5.56769906]
[1747965224705,0.23159215,111370.0,111360.0,5.57667878]
[1747965224918,0.23159215,111370.0,111360.0,4.73088156]
[1747965225087,0.22261324,111370.0,111360.0,5.35219656]
[1747965225663,0.22261324,111370.0,111360.0,5.262651]
[1747965227029,0.22261324,111370.0,111360.0,5.4422487]
[1747965227239,0.21363425,111370.0,111360.0,5.4422487]
[1747965227774,0.21363425,111370.0,111360.0,5.262651]
[1747965228190,0.21363425,111370.0,111360.0,4.614411]
[1747965228407,0.21363425,111370.0,111360.0,5.262651]
[1747965230805,0.21363425,111370.0,111360.0,5.4422487]
[1747965231240,0.21363425,111370.0,111360.0,5.262651]
[1747965232264,0.21363425,111370.0,111360.0,1.09394]
[1747965232437,0.25595424,111370.0,111360.0,1.37568]
[1747965232724,0.21363425,111370.0,111360.0,0.38744]
[1747965232924,0.21363425,111370.0,111360.0,1.03564]
[1747965233120,0.21363425,111370.0,111360.0,1.37564]
[1747965233801,0.21363425,111370.0,111360.0,0.74174122]
[1747965233931,0.21363425,111370.0,111360.0,1.38994122]
[1747965234144,0.21463425,111370.0,111360.0,1.38994122]
[1747965234364,0.21563425,111370.0,111360.0,1.38994122]
[1747965235170,0.21563425,111370.0,111360.0,1.38635631]
[1747965235387,0.21563425,111370.0,111360.0,0.73815631]
[1747965235388,0.30517981,111370.0,111360.0,0.73815631]
[1747965235597,0.30517981,111370.0,111360.0,1.38635631]
[1747965236208,0.30517981,111370.0,111360.0,1.38639631]
[1747965237677,0.30517981,111370.0,111360.0,1.37568]
[1747965241399,0.30517981,111370.0,111360.0,1.10552]
[1747965241618,0.30517981,111370.0,111360.0,0.76552]
[1747965241843,0.45500029,111370.0,111360.0,1.0346]
[1747965242048,0.20311827,111360.0,111350.0,0.01071631]
[1747965242343,0.20311827,111360.0,111340.0,0.000399]
[1747965242344,0.23443521,111350.0,111340.0,0.000399]
[1747965242524,0.32398077,111350.0,111340.0,0.378479]
[1747965243381,0.41350228,111350.0,111340.0,0.378479]
[1747965243601,0.41350228,111350.0,111340.0,0.647559]
[1747965243602,0.4592604,111350.0,111340.0,0.647559]
[1747965243802,0.32398077,111350.0,111340.0,0.647559]
[1747965243998,0.32498077,111350.0,111340.0,0.647559]
[1747965244153,0.32598077,111350.0,111340.0,0.647559]
[1747965244551,0.32498077,111350.0,111340.0,0.647559]
[1747965244977,0.32398077,111350.0,111340.0,0.647559]
[1747965246023,0.32598077,111350.0,111340.0,0.647559]
[1747965246436,0.32798077,111350.0,111340.0,0.647559]
[1747965251150,0.32798077,111350.0,111340.0,0.647759]
[1747965254447,0.32798077,111350.0,111340.0,0.378599]
[1747965254654,0.32798077,111350.0,111340.0,0.647759]
[1747965255281,0.32798077,111350.0,111340.0,0.64744704]
[1747965262745,0.32798077,111350.0,111340.0,0.64752704]
[1747965263955,0.69266335,111350.0,111340.0,8.704e-05]
[1747965264175,0.70266335,111350.0,111340.0,0.64752704]
[1747965264382,0.71266335,111350.0,111340.0,0.64752704]
[1747965265519,0.62314184,111350.0,111340.0,0.64752704]
[1747965265731,0.4834352,111350.0,111340.0,0.64752704]
[1747965266795,0.34798077,111350.0,111340.0,0.64752704]
[1747965267013,0.4834352,111350.0,111340.0,0.64752704]
[1747965269022,0.34798077,111350.0,111340.0,0.64752704]
[1747965269233,0.4834352,111350.0,111340.0,0.64752704]
[1747965269442,0.57273793,111350.0,111340.0,0.64752704]
[1747965269656,0.4372835,111350.0,111340.0,0.64752704]
[1747965269877,0.57273793,111350.0,111340.0,0.64752704]
[1747965270365,0.5978918,111350.0,111340.0,0.64752704]
[1747965270863,0.50858907,111350.0,111340.0,0.64752704]
[1747965272834,0.50858907,111350.0,111340.0,8.704e-05]
[1747965273011,0.50858907,111350.0,111340.0,0.64672704]
[1747965276130,0.84858907,111350.0,111340.0,0.64672704]
[1747965277609,0.84858907,111350.0,111340.0,0.37748704]
[1747965277867,1.07356501,111350.0,111340.0,8.704e-05]
[1747965278079,1.14810501,111350.0,111340.0,8.704e-05]
[1747965278928,0.74110541,111330.0,111320.0,0.64868]
[1747965279158,0.51580484,111330.0,111320.0,0.64868]
[1747965279797,0.38035041,111330.0,111320.0,0.64868]
[1747965280002,0.51580484,111330.0,111320.0,0.64868]
[1747965280680,0.51780484,111330.0,111320.0,0.64868]
[1747965280895,0.38235041,111330.0,111320.0,0.64868]
[1747965281312,0.38335041,111330.0,111320.0,0.64868]
[1747965283399,0.34819654,111330.0,111320.0,0.002]
[1747965283612,0.34819654,111330.0,111320.0,0.64872]
[1747965284639,0.33819654,111330.0,111320.0,0.64872]
[1747965284840,0.34819654,111330.0,111320.0,0.64872]
[1747965286733,0.41133973,111330.0,111320.0,0.64872]
[1747965286965,0.34819654,111330.0,111320.0,0.64872]
[1747965290310,0.62345483,111330.0,111320.0,0.64876]
[1747965293118,0.34819654,111330.0,111320.0,0.64876]
[1747965295486,0.34819654,111330.0,111320.0,0.002]
[1747965295711,0.34819654,111330.0,111320.0,0.27128]
[1747965296274,0.42950647,111330.0,111320.0,0.27128]
[1747965299914,0.34819654,111330.0,111320.0,0.27128]
[1747965300692,0.68819654,111330.0,111320.0,0.002]
[1747965300934,0.68819654,111330.0,111320.0,0.27128]
[1747965301083,0.68819654,111330.0,111320.0,0.002]
[1747965301084,0.97345483,111330.0,111320.0,0.002]
[1747965301318,0.99863723,111330.0,111320.0,0.27128]
[1747965301568,1.11335874,111330.0,111320.0,0.002]
[1747965301831,1.48315703,111330.0,111320.0,0.002]
[1747965302057,1.53315703,111330.0,111320.0,0.002]
[1747965302277,1.25689874,111330.0,111320.0,0.002]
[1747965302483,0.25318648,111310.0,111300.0,0.64792]
[1747965302725,0.64317273,111310.0,111300.0,0.37869088]
[1747965303204,0.67013073,111310.0,111300.0,0.37869088]
[1747965303612,0.64317273,111310.0,111300.0,0.37869088]
[1747965304290,0.69317273,111310.0,111300.0,0.37869088]
[1747965304727,0.77569424,111310.0,111300.0,0.00305088]
[1747965304945,0.68617273,111310.0,111300.0,0.00305088]
[1747965305588,1.12471273,111310.0,111300.0,0.00405088]
[1747965305819,1.14912471,111310.0,111300.0,0.00405088]
[1747965306429,1.02619006,111310.0,111300.0,0.00405088]
[1747965306580,1.11571157,111310.0,111300.0,0.00405088]
[1747965307719,1.1289757,111310.0,111300.0,0.00405088]
[1747965310332,0.18878085,111240.0,111230.0,0.2851316]
[1747965310538,0.18878085,111240.0,111230.0,4.88933189]
[1747965310950,0.18878085,111240.0,111230.0,4.89770391]
[1747965311189,0.18878085,111240.0,111230.0,1.46933291]
[1747965311448,0.18878085,111240.0,111230.0,0.73519782]
[1747965311660,0.18878085,111240.0,111230.0,0.01847782]
[1747965311661,0.27832641,111240.0,111230.0,0.01847782]
[1747965311874,0.29386726,111240.0,111230.0,0.40219782]
[1747965312320,0.29386726,111240.0,111230.0,0.66196131]
[1747965312733,0.29486726,111240.0,111230.0,0.66296131]
[1747965313114,0.29286726,111240.0,111230.0,0.65496131]
[1747965313534,0.29486726,111240.0,111230.0,0.65896131]
[1747965315705,0.29486726,111240.0,111230.0,0.38960131]
[1747965315921,0.29486726,111240.0,111230.0,0.65900131]
[1747965317754,0.32746726,111240.0,111230.0,0.65900131]
[1747965318146,0.29486726,111240.0,111230.0,0.65900131]
[1747965321854,0.32696726,111240.0,111230.0,0.65900131]
[1747965322730,0.18879781,111230.0,111220.0,0.28463509]
[1747965322947,0.27834337,111230.0,111220.0,0.661526]
[1747965323852,0.27834337,111230.0,111220.0,0.930966]
[1747965324067,0.27934337,111230.0,111220.0,0.925866]
[1747965324301,0.28034337,111230.0,111220.0,0.926866]
[1747965325305,0.28034337,111230.0,111220.0,1.314866]
[1747965325521,0.28034337,111230.0,111220.0,0.76989091]
[1747965325731,0.28034337,111230.0,111220.0,1.314866]
[1747965326137,0.28034337,111230.0,111220.0,1.03933091]
[1747965326598,0.29654337,111230.0,111220.0,1.03933091]
[1747965327020,0.28034337,111230.0,111220.0,1.03933091]
[1747965328626,0.29684337,111230.0,111220.0,1.03933091]
[1747965332511,0.31138422,111230.0,111220.0,0.76989091]
[1747965332753,0.32648422,111230.0,111220.0,1.03937091]
[1747965333983,0.32648422,111230.0,111220.0,1.03845091]
[1747965334787,0.32648422,111230.0,111220.0,1.04684898]
[1747965336452,0.31138422,111230.0,111220.0,1.04684898]
[1747965337869,0.32688422,111230.0,111220.0,1.04684898]
[1747965338299,0.31138422,111230.0,111220.0,1.04684898]
[1747965340013,0.31138422,111230.0,111220.0,1.05545952]
[1747965341335,0.31138422,111230.0,111220.0,1.06976074]
[1747965341951,0.28034337,111230.0,111220.0,1.07886074]
[1747965342138,0.28034337,111230.0,111220.0,1.06976074]
[1747965344799,0.29674337,111230.0,111220.0,1.06976074]
[1747965347030,0.31244337,111230.0,111220.0,1.06976074]
[1747965349128,0.31244337,111230.0,111220.0,0.68176074]
[1747965349534,0.31244337,111230.0,111220.0,0.67336267]
[1747965354284,0.32698422,111230.0,111220.0,0.40388267]
[1747965354490,0.32698422,111230.0,111220.0,0.67336267]
[1747965355121,0.32698422,111230.0,111220.0,0.68178419]
[1747965355269,0.32598422,111230.0,111220.0,0.68078419]
[1747965355475,0.32498422,111230.0,111220.0,0.67678419]
[1747965355895,0.32598422,111230.0,111220.0,0.67678419]
[1747965356356,0.32598422,111230.0,111220.0,0.66248297]
[1747965356603,0.32598422,111230.0,111220.0,0.01708297]
[1747965356830,0.32598422,111230.0,111220.0,0.66252297]
[1747965357072,0.32698422,111230.0,111190.0,0.3491]
[1747965357311,0.19785911,111190.0,111180.0,0.24440348]
[1747965357518,0.19785911,111190.0,111180.0,4.50738541]
[1747965358411,0.19785911,111190.0,111180.0,4.7858595]
[1747965358835,0.001,111190.0,111180.0,4.78685909]
[1747965359020,0.00999296,111190.0,111180.0,4.87640416]
[1747965359233,0.00999296,111190.0,111180.0,5.18786286]
[1747965359465,0.01099296,111190.0,111180.0,5.18786286]
[1747965360150,0.002,111190.0,111180.0,5.18786286]
[1747965360367,0.01099296,111190.0,111180.0,5.18786286]
[1747965360763,0.002,111190.0,111180.0,5.18786286]
[1747965361351,0.01099288,111190.0,111180.0,5.18786286]
[1747965362301,0.002,111190.0,111180.0,5.18786286]
[1747965362775,0.18883177,111210.0,111200.0,0.18884883]
[1747965362985,0.18883177,111210.0,111200.0,4.34529983]
[1747965363413,0.18883177,111210.0,111200.0,4.156451]
[1747965363827,0.18883177,111210.0,111200.0,4.33630711]
[1747965364075,0.18883177,111210.0,111200.0,4.34529991]
[1747965364482,0.18883177,111210.0,111200.0,4.35429263]
[1747965364684,0.18983177,111210.0,111200.0,4.35529263]
[1747965365304,0.18983177,111210.0,111200.0,4.74333263]
[1747965365594,0.19083177,111210.0,111200.0,4.74433263]
[1747965368914,0.19083177,111210.0,111200.0,4.76231783]
[1747965369122,0.19083177,111210.0,111200.0,4.77131031]
[1747965369557,0.19083177,111210.0,111200.0,4.77992394]
[1747965369974,0.19083177,111210.0,111200.0,5.15492394]
[1747965372016,0.18966324,111210.0,111200.0,5.15492394]
[1747965372223,0.18966324,111210.0,111200.0,4.66062463]
[1747965372401,0.21353994,111210.0,111200.0,4.77663363]
[1747965372634,0.21353994,111210.0,111200.0,2.07223363]
[1747965373944,0.21353994,111210.0,111200.0,2.08064532]
[1747965374727,0.21353994,111210.0,111200.0,2.07223363]
[1747965376219,0.21353994,111210.0,111200.0,1.42775363]
[1747965376429,0.21353994,111210.0,111200.0,2.07223363]
[1747965378148,0.21353994,111210.0,111200.0,2.07165133]
[1747965378823,0.3030855,111210.0,111200.0,1.22187133]
[1747965379001,0.3030855,111210.0,111200.0,1.83976349]
[1747965380492,0.21353994,111210.0,111200.0,1.83976349]
[1747965381509,0.18183994,111210.0,111200.0,2.0376048]
[1747965381750,0.19982336,111210.0,111200.0,2.02919264]
[1747965381877,0.19982336,111210.0,111200.0,2.0291928]
[1747965382309,0.01998342,111210.0,111200.0,2.04717751]
[1747965382526,0.20881527,111210.0,111200.0,2.0291928]
[1747965382726,0.19982368,111210.0,111200.0,2.0291928]
[1747965383288,0.19982368,111210.0,111200.0,2.03818536]
[1747965384480,0.19083185,111210.0,111200.0,2.0291928]
[1747965386264,0.18183994,111210.0,111200.0,1.83135133]
[1747965386470,0.19763994,111210.0,111200.0,2.01120744]
[1747965389520,0.19763994,111210.0,111200.0,2.02020016]
[1747965390237,0.20663193,111210.0,111200.0,2.02020016]
[1747965390462,0.19083193,111210.0,111200.0,2.02020016]
[1747965392760,0.21473994,111210.0,111200.0,1.83135133]
[1747965393960,0.21473994,111210.0,111200.0,2.01120744]
[1747965394171,0.21473994,111210.0,111200.0,1.83135133]
[1747965395625,0.21473994,111210.0,111200.0,2.01120744]
[1747965397754,0.21473994,111210.0,111200.0,1.83135133]
[1747965399686,0.21473994,111210.0,111200.0,1.56187133]
[1747965399896,0.21473994,111210.0,111200.0,1.83135133]
[1747965400317,0.21473994,111210.0,111200.0,1.56187133]
[1747965400528,0.21473994,111210.0,111200.0,1.21628242]
[1747965401553,0.21473994,111210.0,111200.0,1.23064536]
[1747965405169,0.21473994,111210.0,111200.0,1.61864536]
[1747965412141,0.21473994,111210.0,111200.0,1.60428242]
[1747965412362,0.21473994,111210.0,111200.0,1.78413853]
[1747965415598,0.21473994,111210.0,111200.0,1.60428242]
[1747965416066,0.21473994,111210.0,111200.0,1.33480242]
[1747965416303,0.21473994,111210.0,111200.0,1.78413853]
[1747965416744,0.21473994,111210.0,111200.0,1.60428242]
[1747965419873,0.21473994,111210.0,111200.0,1.33480242]
[1747965420085,0.21473994,111210.0,111200.0,1.60428242]
[1747965420855,0.21473994,111210.0,111200.0,0.96084242]
[1747965421067,0.21473994,111210.0,111200.0,1.33480242]
[1747965421274,0.21473994,111210.0,111200.0,1.60428242]
[1747965421481,0.21473994,111210.0,111200.0,1.6127038]
[1747965422953,0.21473994,111210.0,111200.0,1.62706765]
[1747965431549,0.21473994,111210.0,111200.0,1.6270591]
[1747965434332,0.21473994,111210.0,111200.0,1.61269525]
[1747965437192,0.21473994,111210.0,111200.0,1.60428242]
[1747965437942,0.21426434,111210.0,111200.0,1.60428242]
[1747965438191,0.21426434,111210.0,111200.0,1.61863981]
[1747965441180,0.21426434,111210.0,111200.0,1.60428242]
[1747965443066,0.24123967,111210.0,111200.0,1.81111637]
[1747965443275,0.22463967,111210.0,111200.0,1.80212397]
[1747965443479,0.19934808,111210.0,111200.0,1.80212397]
[1747965443681,0.19934808,111210.0,111200.0,1.80212405]
[1747965444049,0.19934808,111210.0,111200.0,1.82010925]
[1747965445115,0.19934808,111210.0,111200.0,1.80212405]
[1747965445334,0.21614808,111210.0,111200.0,1.80212405]
[1747965445904,0.21614808,111210.0,111200.0,1.79313133]
[1747965446122,0.22435625,111210.0,111200.0,1.60428242]
[1747965447561,0.22435625,111210.0,111200.0,1.60316242]
[1747965448842,0.22435625,111210.0,111200.0,1.61177801]
[1747965457007,0.22435625,111210.0,111200.0,1.27177801]
[1747965459987,0.22435625,111210.0,111200.0,1.61177801]
[1747965482490,0.22435625,111210.0,111200.0,1.79163412]
[1747965482704,0.22435625,111210.0,111200.0,1.61177801]
[1747965483168,0.22435625,111210.0,111200.0,1.80062692]
[1747965483472,0.21536434,111210.0,111200.0,1.61177801]
[1747965483680,0.21536434,111210.0,111200.0,1.79163412]
[1747965484171,0.18136434,111210.0,111200.0,1.80062684]
[1747965485002,0.21216434,111210.0,111200.0,1.80062684]
[1747965485414,0.18136434,111210.0,111200.0,1.8096194]
[1747965485617,0.19035617,111210.0,111200.0,1.81861188]
[1747965485822,0.19035617,111210.0,111200.0,1.27715483]
[1747965486025,0.22215617,111210.0,111200.0,0.88911483]
[1747965486229,0.22215617,111210.0,111200.0,4.32728583]
[1747965486671,0.22215617,111210.0,111200.0,4.33627847]
[1747965486992,0.22215617,111210.0,111200.0,4.60575847]
[1747965487195,0.22215617,111210.0,111200.0,4.62374351]
[1747965487451,0.22215617,111210.0,111200.0,4.63810647]
[1747965487834,0.22215617,111210.0,111200.0,4.62012143]
[1747965488029,0.22215617,111210.0,111200.0,4.63810631]
[1747965488316,0.19035617,111210.0,111200.0,4.63810631]
[1747965488778,0.19934776,111210.0,111200.0,4.62911399]
[1747965488932,0.23294776,111210.0,111200.0,4.62911399]
[1747965489367,0.23294776,111210.0,111200.0,4.61475103]
[1747965490093,0.22395617,111210.0,111200.0,4.60575839]
[1747965491686,0.19035617,111210.0,111200.0,4.60575839]
[1747965491937,0.22195617,111210.0,111200.0,4.62011641]
[1747965492539,0.22195617,111210.0,111200.0,4.62910889]
[1747965492676,0.19035617,111210.0,111200.0,4.71865445]
[1747965492881,0.01950782,111210.0,111200.0,4.72764668]
[1747965493067,0.20833967,111210.0,111200.0,4.72764668]
[1747965493276,0.20833967,111210.0,111200.0,4.71865445]
[1747965493702,0.24083967,111210.0,111200.0,4.71865445]
[1747965495440,0.23184808,111210.0,111200.0,5.09229643]
[1747965496178,0.23184808,111210.0,111200.0,5.08330395]
[1747965496638,0.23184808,111210.0,111200.0,4.80483139]
[1747965496840,0.22285625,111210.0,111200.0,5.07431139]
[1747965496986,0.21386434,111210.0,111200.0,5.07431139]
[1747965502485,0.21386434,111210.0,111200.0,5.08330403]
[1747965504281,0.21386434,111210.0,111200.0,5.07431139]
[1747965505071,0.21386434,111210.0,111200.0,5.08330403]
[1747965506961,0.22285617,111210.0,111200.0,5.09229643]
[1747965507365,0.22285617,111210.0,111200.0,5.08330403]
[1747965507699,0.22285617,111210.0,111200.0,5.09229651]
[1747965509463,0.22285617,111210.0,111200.0,5.10128891]
[1747965509615,0.19051569,111210.0,111200.0,5.10128891]
[1747965510567,0.19051569,111210.0,111200.0,5.09229651]
[1747965510971,0.20849927,111210.0,111200.0,5.10128891]
[1747965511333,0.04209086,111220.0,111210.0,0.53780914]
[1747965511578,0.04209086,111220.0,111210.0,4.07451713]
[1747965511579,0.06007234,111220.0,111210.0,4.07451713]
[1747965511774,0.06007226,111220.0,111210.0,4.07451713]
[1747965511933,0.05108132,111220.0,111210.0,4.10147913]
[1747965512143,0.06007226,111220.0,111210.0,4.0924877]
[1747965512342,0.24888721,111220.0,111210.0,4.10147929]
[1747965512544,0.25088721,111220.0,111210.0,4.10447929]
[1747965512760,0.25088721,111220.0,111210.0,4.1134708]
[1747965513021,0.25088721,111220.0,111210.0,4.12208865]
[1747965513430,0.25088721,111220.0,111210.0,4.11309714]
[1747965513814,0.0351,111220.0,111210.0,4.12208857]
[1747965514071,0.01099046,111220.0,111210.0,4.12208857]
[1747965514283,0.002,111220.0,111210.0,4.12208857]
[1747965515010,0.002,111220.0,111210.0,4.48174857]
[1747965519246,0.002,111220.0,111210.0,4.45478657]
[1747965520303,0.08034993,111230.0,111220.0,0.54679635]
[1747965520507,0.08034993,111230.0,111220.0,4.71399291]
[1747965520923,0.08035057,111230.0,111220.0,4.71399299]
[1747965521561,0.08135057,111230.0,111220.0,4.72403454]
[1747965522158,0.08135057,111230.0,111220.0,4.73265239]